bitfinex/quotes_ETHUSD_20250804
["timestamp","ask_amount","ask_price","bid_price","bid_amount"]
[1754329140439,0.001,3692.4,3691.7,0.8893]
[1754329140440,0.001,3692.4,3692.3,2.70833897]
[1754329140618,0.25375576,3692.4,3692.3,2.70833897]
[1754329141047,0.25375576,3692.4,3692.3,3.59763897]
[1754329141270,0.25375576,3692.4,3692.3,4.25555765]
[1754329142547,0.25375576,3692.4,3692.3,4.24177144]
[1754329142857,0.001,3692.4,3692.3,4.24177144]
[1754329143662,0.001,3692.6,3692.5,2.70819228]
[1754329143861,0.001,3692.6,3692.5,3.25819228]
[1754329144159,0.001,3692.6,3692.5,4.65823777]
[1754329144649,0.001,3692.6,3692.5,3.76893777]
[1754329144848,0.001,3692.6,3692.5,4.65823777]
[1754329146535,0.001,3692.6,3692.5,8.86823777]
[1754329149061,0.001,3693.6,3692.6,3.25809446]
[1754329149360,0.8051,3693.6,3693.3,2.70759858]
[1754329149557,0.4289,3693.6,3693.5,0.1352]
[1754329150167,0.8051,3693.6,3693.5,0.1352]
[1754329150530,1.233,3693.6,3693.5,0.1352]
[1754329152230,0.8051,3693.6,3693.5,0.1352]
[1754329152430,1.233,3693.6,3693.5,0.1352]
[1754329153538,0.8051,3693.6,3693.5,0.1352]
[1754329153834,1.233,3693.6,3693.5,0.1352]
[1754329154459,0.8051,3693.6,3693.5,0.1352]
[1754329154666,0.001,3693.6,3693.5,3.21820453]
[1754329155161,0.001,3693.6,3693.5,7.42720453]
[1754329155530,0.001,3693.6,3693.5,4.71974549]
[1754329155729,0.8051,3693.6,3693.5,4.71974549]
[1754329155960,0.001,3693.6,3693.5,7.42720453]
[1754329158370,0.001,3693.6,3693.5,4.71974549]
[1754329158758,0.8235,3693.6,3693.5,7.42720453]
[1754329159161,0.001,3693.6,3693.5,4.71974549]
[1754329159838,0.001,3693.6,3693.5,7.42720453]
[1754329162075,0.001,3693.6,3693.5,4.71974549]
[1754329162274,1.2541,3693.6,3693.5,4.3422]
[1754329162434,0.001,3693.6,3693.5,4.3422]
[1754329162639,0.001,3693.6,3693.5,8.33732325]
[1754329162952,0.001,3693.6,3693.5,8.32355904]
[1754329163258,0.001,3693.6,3693.5,6.91445904]
[1754329167169,0.001,3693.6,3693.5,8.32355904]
[1754329167766,0.001,3693.6,3693.5,12.08685904]
[1754329167957,0.001,3693.6,3693.5,11.67445904]
[1754329168777,0.8235,3693.6,3693.5,11.12445904]
[1754329169086,1.2541,3693.6,3693.5,11.12445904]
[1754329169389,0.8235,3693.6,3693.5,11.12445904]
[1754329169592,0.001,3693.6,3693.5,11.12445904]
[1754329170788,1.2541,3693.6,3693.5,8.417]
[1754329171191,0.001,3693.6,3693.5,4.21]
[1754329171571,0.8235,3693.6,3693.5,4.21]
[1754329171790,1.2541,3693.6,3693.5,4.21]
[1754329172667,1.2541,3693.6,3693.5,4.3452]
[1754329172867,0.001,3693.6,3693.5,14.63122325]
[1754329173079,0.001,3693.6,3693.5,15.47655904]
[1754329174089,0.001,3693.6,3693.5,14.61745904]
[1754329174406,0.8235,3693.6,3693.5,14.06745904]
[1754329175311,1.2541,3693.6,3693.5,11.36]
[1754329177409,1.2541,3693.6,3693.5,4.21]
[1754329178013,1.2541,3693.6,3693.4,4.206]
[1754329178304,1.2531,3693.5,3693.4,4.206]
[1754329178507,0.4306,3693.5,3693.4,4.206]
[1754329178826,0.4306,3693.5,3692.9,0.55]
[1754329178827,1.2531,3693.5,3692.9,0.55]
[1754329179012,0.4306,3693.4,3693.0,7.40906127]
[1754329179302,0.4306,3693.3,3693.0,7.40906127]
[1754329179608,0.8225,3693.2,3693.1,2.70775229]
[1754329179811,1.2531,3693.2,3693.0,7.40904042]
[1754329180101,1.2531,3693.1,3693.0,7.40904042]
[1754329181911,1.2531,3693.1,3693.0,4.70123566]
[1754329182209,1.2531,3693.1,3692.6,0.002]
[1754329182414,5.70760026,3693.4,3692.6,0.002]
[1754329182727,1.2531,3693.0,3692.6,0.002]
[1754329182924,4.2531,3693.0,3692.6,0.002]
[1754329183226,2.70782561,3693.0,3692.9,0.1352]
[1754329183435,2.70782561,3693.0,3692.6,0.002]
[1754329183436,2.7080456,3692.7,3692.6,0.002]
[1754329183719,5.7080456,3692.7,3692.6,0.002]
[1754329183885,6.9611456,3692.7,3692.6,0.002]
[1754329188492,11.1661456,3692.7,3692.6,0.002]
[1754329188912,12.56707608,3692.7,3692.6,0.002]
[1754329189828,42.56707608,3692.7,3692.6,0.002]
[1754329191831,2.70833897,3692.3,3692.2,0.002]
[1754329192135,56.2330258,3692.3,3692.2,0.002]
[1754329192287,57.96777157,3692.3,3692.2,0.002]
[1754329192491,60.69643343,3692.3,3692.2,0.002]
[1754329193804,60.69643343,3692.3,3692.2,1e-08]
[1754329195224,56.49143343,3692.3,3692.2,1e-08]
[1754329195395,60.69643343,3692.3,3692.2,1e-08]
[1754329195729,56.49143343,3692.3,3692.2,1e-08]
[1754329196028,60.69643343,3692.3,3692.2,1e-08]
[1754329196727,62.32343343,3692.3,3692.2,1e-08]
[1754329197031,60.96753343,3692.3,3692.2,1e-08]
[1754329200732,56.76253343,3692.3,3692.2,1e-08]
[1754329201133,60.96753343,3692.3,3692.2,1e-08]
[1754329201734,2.70855904,3692.0,3691.3,0.1352]
[1754329202036,5.70899929,3691.4,3691.3,0.1352]
[1754329202334,9.91399929,3691.4,3691.3,0.1352]
[1754329203039,5.70907268,3691.3,3691.2,4.21]
[1754329203222,5.70914607,3691.2,3691.1,0.002]
[1754329203544,11.13274607,3691.2,3691.1,0.002]
[1754329203746,44.41140793,3691.2,3691.1,1e-08]
[1754329204722,40.20640793,3691.2,3691.1,1e-08]
[1754329204941,44.41140793,3691.2,3691.1,1e-08]
[1754329205182,39.19680793,3691.2,3691.1,1e-08]
[1754329205306,43.86140793,3691.2,3691.1,1e-08]
[1754329206519,39.65640793,3691.2,3691.1,1e-08]
[1754329206742,43.40180793,3691.2,3691.1,1e-08]
[1754329206916,39.19680793,3691.2,3691.1,1e-08]
[1754329207117,43.40180793,3691.2,3691.1,1e-08]
[1754329207407,42.64280793,3691.2,3691.1,1e-08]
[1754329207635,39.91414607,3691.2,3691.1,1e-08]
[1754329207944,41.13274607,3691.2,3691.1,1e-08]
[1754329211229,9.91488022,3690.2,3690.1,0.004]
[1754329212707,23.25820249,3690.2,3690.1,0.004]
[1754329214953,7.45701498,3690.2,3690.1,0.8346]
[1754329215274,7.4570192,3690.2,3690.1,0.8346]
[1754329215671,5.96189942,3690.2,3690.1,0.8346]
[1754329215880,10.16689942,3690.2,3690.1,0.8346]
[1754329216191,10.16689942,3690.2,3690.1,0.004]
[1754329216856,7.4570192,3690.2,3690.1,0.004]
[1754329217044,7.4570192,3690.2,3690.1,0.8346]
[1754329217383,10.16689942,3690.2,3690.1,0.004]
[1754329217588,11.18358936,3690.2,3690.1,0.004]
[1754329217747,3.2520192,3690.2,3690.1,0.004]
[1754329218093,4.4570192,3690.2,3690.1,0.8346]
[1754329219195,4.4570192,3690.2,3690.1,3.67975365]
[1754329219394,4.4570192,3690.2,3690.1,0.9698]
[1754329219395,4.205,3690.2,3690.1,0.9698]
[1754329219600,4.205,3690.2,3690.1,3.67975365]
[1754329219886,3.0,3690.9,3690.1,1.33777537]
[1754329220057,3.0,3690.7,3690.1,0.50717537]
[1754329220263,4.45646574,3690.6,3690.2,0.8306]
[1754329220594,0.7426,3691.3,3690.2,0.8306]
[1754329220595,0.25246574,3690.5,3690.4,2.70973336]
[1754329220760,4.204,3690.6,3690.5,0.1352]
[1754329220964,4.45646574,3690.6,3690.5,0.9658]
[1754329221182,4.4566534,3690.6,3690.5,0.9658]
[1754329221694,0.2526534,3690.6,3690.5,4.04302522]
[1754329221895,4.204,3690.9,3690.5,4.04302522]
[1754329222051,0.2526534,3690.8,3690.7,2.70945812]
[1754329222561,0.2526534,3690.8,3690.7,2.84465812]
[1754329222751,0.2526534,3690.8,3690.7,3.64795812]
[1754329222951,0.2526534,3691.0,3690.9,2.70936627]
[1754329223151,0.2526534,3691.0,3690.8,2.70942541]
[1754329223452,4.4566534,3691.0,3690.9,0.1352]
[1754329223780,4.204,3691.0,3690.9,3.64786627]
[1754329223958,4.45685153,3691.0,3690.9,0.9385]
[1754329224164,4.45685153,3691.0,3690.9,0.1352]
[1754329224571,4.45585153,3691.0,3690.9,0.9385]
[1754329224980,4.45585153,3691.0,3690.9,1.30647537]
[1754329225787,4.45585153,3691.0,3690.9,0.50317537]
[1754329225984,4.45585153,3691.0,3690.9,0.1352]
[1754329226284,0.25285153,3691.0,3690.9,0.1352]
[1754329226589,0.25285153,3691.0,3690.9,0.5476]
[1754329227585,0.25285153,3691.0,3690.9,4.7576]
[1754329227787,0.25285153,3691.0,3690.9,4.3452]
[1754329230091,4.43175153,3691.0,3690.9,4.3452]
[1754329230259,6.90047954,3691.0,3690.9,4.3452]
[1754329230659,6.90147954,3691.0,3690.9,4.3452]
[1754329230996,2.70960892,3690.6,3690.1,0.006]
[1754329231206,3.0,3690.7,3690.5,0.1352]
[1754329231355,9.91158651,3690.6,3690.5,0.1352]
[1754329231557,12.64024837,3690.6,3690.5,0.1352]
[1754329231880,5.70971759,3690.5,3690.2,0.1352]
[1754329232085,3.0,3690.3,3690.2,0.1352]
[1754329232296,5.70980679,3690.3,3690.2,0.1352]
[1754329232472,20.23202906,3690.3,3690.2,0.1352]
[1754329232793,20.23202906,3690.3,3690.1,0.006]
[1754329232794,5.70988022,3690.2,3690.1,0.006]
[1754329232998,11.34371455,3690.2,3690.1,0.006]
[1754329235983,11.34374268,3690.2,3690.1,0.006]
[1754329236498,12.16484268,3690.2,3690.1,0.006]
[1754329236660,12.30291032,3690.2,3690.1,0.006]
[1754329236857,44.50053833,3690.2,3690.1,0.006]
[1754329237259,44.50053833,3690.2,3689.7,0.002]
[1754329237260,2.71017399,3689.8,3689.7,0.002]
[1754329237459,5.71039436,3689.5,3689.4,0.004]
[1754329237791,40.16535682,3689.5,3689.4,0.004]
[1754329237960,41.34425682,3689.5,3689.4,0.004]
[1754329238157,44.07291868,3689.5,3689.4,0.004]
[1754329238360,14.07291868,3689.5,3689.4,0.004]
[1754329238897,44.07291868,3689.5,3689.4,0.004]
[1754329239121,39.87091868,3689.5,3689.4,0.004]
[1754329239292,44.07291868,3689.5,3689.4,0.004]
[1754329240918,13.77181868,3689.5,3689.4,0.004]
[1754329241411,14.07291868,3689.5,3689.4,0.004]
[1754329241817,9.87028737,3689.5,3689.4,0.004]
[1754329242017,9.87028737,3689.5,3686.9,6.511]
[1754329242018,2.71066342,3689.2,3686.9,6.511]
[1754329242227,2.71106464,3688.6,3687.8,0.8073]
[1754329242386,3.25233115,3688.5,3687.8,0.8073]
[1754329242711,3.0,3688.3,3687.8,0.8073]
[1754329242920,0.7426,3688.5,3687.7,0.004]
[1754329243132,2.71152127,3688.0,3687.7,0.004]
[1754329243293,3.0,3688.1,3687.7,0.004]
[1754329243498,2.71149674,3688.0,3687.7,0.004]
[1754329243887,2.71151497,3688.0,3687.7,0.004]
[1754329244088,2.71157686,3687.9,3687.7,0.004]
[1754329244331,2.7453979,3688.0,3687.7,0.004]
[1754329244537,6.45424379,3687.8,3687.7,0.004]
[1754329246134,6.89054379,3687.8,3687.7,0.004]
[1754329246700,11.09354379,3687.8,3687.7,0.004]
[1754329248240,5.71171733,3687.7,3684.8,3.52875705]
[1754329248400,2.71257399,3686.6,3685.6,2.71325862]
[1754329248601,2.71248109,3686.7,3685.7,3.52047644]
[1754329248801,2.71248109,3686.7,3685.9,2.71298879]
[1754329249103,2.71248109,3686.7,3686.0,2.71295455]
[1754329249324,2.7125236,3686.7,3685.9,2.71299086]
[1754329249526,3.0,3686.8,3686.0,0.3909]
[1754329249726,2.7125309,3686.6,3685.9,0.8073]
[1754329250041,4.203,3686.5,3685.4,6.512]
[1754329250273,4.9439,3686.5,3685.6,3.52055164]
[1754329250441,0.7409,3687.1,3685.5,0.6512]
[1754329250605,3.0,3686.9,3686.0,2.71292055]
[1754329250806,3.0,3686.7,3686.1,0.7811]
[1754329251003,3.0,3686.5,3685.0,0.05]
[1754329251235,3.0,3686.3,3685.0,0.05]
[1754329251515,4.242,3686.2,3685.0,3.54478089]
[1754329251720,7.242,3686.1,3685.0,0.05]
[1754329251945,3.0,3685.9,3685.0,0.8311]
[1754329252148,3.0,3685.7,3685.6,0.1352]
[1754329252368,3.92400367,3685.7,3685.6,0.1352]
[1754329252536,2.71326242,3685.6,3685.2,0.1352]
[1754329252860,1.1769,3685.6,3685.0,0.05]
[1754329253025,4.29379,3685.5,3685.0,0.05]
[1754329253223,5.84883056,3685.1,3685.0,0.05]
[1754329253574,10.65583056,3685.1,3685.0,0.05]
[1754329253860,11.83273056,3685.1,3685.0,0.05]
[1754329254063,11.83273056,3685.1,3684.5,0.10755616]
[1754329254064,2.7139988,3684.6,3684.5,0.10755616]
[1754329254264,40.55071431,3684.6,3684.5,0.10755616]
[1754329254422,41.69368933,3684.6,3684.5,0.10755616]
[1754329254623,42.24368933,3684.6,3684.5,0.10755616]
[1754329254849,42.38050117,3684.6,3684.5,0.10755616]
[1754329255836,41.69768933,3684.6,3684.5,0.10755616]
[1754329256164,37.43368933,3684.6,3684.5,0.10755616]
[1754329256323,38.98469053,3684.6,3684.5,0.10755616]
[1754329256529,11.69868933,3684.6,3684.5,0.10755616]
[1754329256749,11.69868933,3684.6,3682.4,6.514]
[1754329256750,2.7147189,3683.7,3682.6,2.71546997]
[1754329256949,2.7147189,3683.7,3682.4,9.22957074]
[1754329256950,5.0079,3683.6,3683.3,0.1352]
[1754329257149,8.15863765,3683.6,3682.5,3.60182548]
[1754329257362,5.4439,3683.6,3683.0,0.1352]
[1754329257565,0.1352,3683.7,3683.0,0.1352]
[1754329257822,4.268,3683.6,3682.7,2.71537147]
[1754329257944,0.7409,3684.0,3682.8,0.4699]
[1754329258137,3.0,3683.8,3683.5,0.1352]
[1754329258462,3.0,3683.6,3683.1,0.1352]
[1754329258779,31.3121,3683.7,3683.1,0.1352]
[1754329258780,0.1352,3683.7,3683.1,0.1352]
[1754329259076,3.0,3683.4,3683.1,0.1352]
[1754329259279,3.0,3683.1,3681.9,2.71598902]
[1754329259444,4.272,3683.1,3682.2,0.4699]
[1754329259643,4.272,3683.1,3682.3,2.71564018]
[1754329259845,5.36149855,3683.4,3682.3,0.8863]
[1754329260062,3.0,3683.2,3682.4,3.60187252]
[1754329260376,0.7409,3684.2,3683.3,2.71489593]
[1754329260582,5.0289,3684.2,3683.3,0.8863]
[1754329260730,2.71449991,3684.0,3683.0,3.60146223]
[1754329260935,3.0,3683.8,3683.0,0.8863]
[1754329261131,0.03393327,3683.7,3683.0,0.8863]
[1754329261336,3.92037957,3683.8,3683.0,2.71515526]
[1754329261544,3.92037957,3683.8,3682.2,4.289]
[1754329261545,0.7409,3684.4,3683.3,2.71493667]
[1754329261750,0.7409,3684.4,3683.3,0.4699]
[1754329261751,2.71429857,3684.2,3683.3,0.4699]
[1754329262049,1.28369053,3684.6,3683.3,3.18478488]
[1754329262249,3.0,3684.5,3683.3,0.4699]
[1754329262491,3.0,3684.2,3683.4,0.4164]
[1754329262653,3.03392774,3684.3,3683.4,0.4164]
[1754329262855,4.288,3684.2,3683.4,0.8863]
[1754329263170,3.0,3684.1,3683.4,0.8863]
[1754329263798,3.0,3683.9,3683.0,2.71510802]
[1754329264004,0.7409,3684.0,3683.2,2.71501467]
[1754329264361,0.7409,3684.0,3683.1,0.4699]
[1754329264555,4.284,3684.0,3683.4,2.71483622]
[1754329264883,4.284,3684.0,3682.2,2.7156992]
[1754329264884,4.284,3684.0,3682.4,0.55]
[1754329265087,2.71466826,3683.7,3682.8,0.4699]
[1754329265316,3.0,3683.7,3682.8,0.4699]
[1754329265468,0.03393419,3683.6,3682.9,2.71524331]
[1754329265662,0.03393419,3683.6,3683.0,2.71516064]
[1754329265861,3.50128,3683.9,3683.1,3.13144494]
[1754329266100,0.03393143,3683.9,3682.5,0.5386]
[1754329266263,0.7409,3685.0,3683.1,2.71507504]
[1754329266477,0.436,3685.2,3684.4,2.71412803]
[1754329266798,5.0329,3685.6,3684.8,2.71383797]
[1754329267094,2.71230246,3687.0,3684.4,0.8863]
[1754329267095,0.24873989,3685.5,3684.7,0.4164]
[1754329267295,2.71318881,3685.7,3684.7,3.1302995]
[1754329267594,0.24873989,3685.6,3684.7,0.4164]
[1754329267809,0.68473989,3686.0,3684.8,0.4699]
[1754329267964,0.68473989,3686.0,3685.1,2.71362408]
[1754329268165,0.68473989,3686.0,3685.2,2.71350708]
[1754329268392,0.68473989,3686.0,3684.8,0.4699]
[1754329268560,0.82070388,3686.0,3685.3,2.71344721]
[1754329268901,0.82070388,3686.0,3685.2,2.71354535]
[1754329269119,3.0,3686.1,3685.3,2.71343617]
[1754329269294,3.0,3686.1,3685.7,0.1352]
[1754329269919,2.71304159,3685.9,3685.7,0.1352]
[1754329270220,3.89001519,3685.8,3685.7,0.1352]
[1754329270384,2.71324652,3685.7,3685.4,0.1352]
[1754329270579,0.03391578,3685.6,3685.4,0.1352]
[1754329270785,3.0,3685.2,3685.0,0.1352]
[1754329271006,0.7409,3685.2,3685.0,0.1352]
[1754329271205,3.0,3685.3,3685.0,0.1352]
[1754329271410,6.14948341,3685.3,3685.0,0.1352]
[1754329271730,1.1769,3685.2,3684.7,0.1352]
[1754329271897,2.71430268,3684.2,3683.3,0.8863]
[1754329272098,0.7409,3684.1,3683.8,0.1352]
[1754329272427,4.1769,3684.1,3683.8,0.1352]
[1754329272583,5.7145145,3683.9,3683.8,0.1352]
[1754329272790,5.7145145,3683.9,3683.1,2.71507768]
[1754329272791,3.0,3683.8,3683.1,2.71508367]
[1754329273091,4.12434145,3683.9,3683.3,0.1352]
[1754329273306,3.1352,3683.9,3683.3,0.1352]
[1754329273711,0.1352,3683.9,3683.3,0.14914799]
[1754329273906,0.1352,3683.9,3683.7,2.71459827]
[1754329274077,3.0,3684.2,3683.2,0.4164]
[1754329274078,5.0419,3684.9,3683.8,1.0215]
[1754329274278,3.0,3684.5,3684.4,0.1352]
[1754329274510,4.1769,3684.5,3684.4,0.1352]
[1754329274692,3.89097246,3684.5,3684.4,0.1352]
[1754329275093,3.89097246,3684.5,3683.0,4.7709]
[1754329275094,1.2108259,3684.5,3683.0,4.7709]
[1754329275325,3.91811359,3684.4,3683.9,0.1352]
[1754329275513,3.0,3684.1,3683.9,0.1352]
[1754329275714,2.7143696,3684.1,3683.9,0.1352]
[1754329276026,6.45534082,3684.0,3683.9,0.1352]
[1754329276231,6.45534082,3684.0,3683.5,0.1352]
[1754329276232,5.71451845,3683.9,3683.5,0.1352]
[1754329276415,6.45541845,3683.9,3683.5,0.1352]
[1754329276650,3.0,3684.1,3683.5,0.1352]
[1754329276839,5.71441427,3684.1,3683.5,0.1352]
[1754329277226,3.0,3684.1,3683.4,2.71485447]
[1754329277457,3.0,3684.1,3683.8,0.1352]
[1754329277766,4.03086009,3684.7,3683.4,0.01394249]
[1754329277927,4.3,3684.8,3684.0,2.71444082]
[1754329277928,2.71385866,3684.8,3684.0,2.71444082]
[1754329278128,2.84890544,3685.0,3684.5,0.1352]
[1754329278129,2.7139988,3684.6,3684.5,0.1352]
[1754329278334,5.7139988,3684.6,3684.5,0.1352]
[1754329278528,6.4695988,3684.6,3684.5,0.0352]
[1754329278731,4.67394813,3684.6,3683.2,4.301]
[1754329278951,6.63880213,3684.5,3683.1,8.527689]
[1754329279153,5.71450528,3684.0,3683.9,0.1352]
[1754329279523,6.47010528,3684.0,3683.9,0.1352]
[1754329280772,6.93640528,3684.0,3683.9,0.1352]
[1754329281073,6.47010528,3684.0,3683.9,0.1352]
[1754329281367,7.90147676,3684.0,3683.9,0.1352]
[1754329281733,3.0,3684.0,3683.9,0.1352]
[1754329281933,3.0,3683.9,3683.6,2.7146718]
[1754329282233,5.7143539,3684.2,3683.9,0.1352]
[1754329282562,5.71431091,3684.2,3683.9,0.1352]
[1754329282762,2.71444082,3684.0,3683.9,0.1352]
[1754329283063,3.0,3684.1,3683.9,0.1352]
[1754329283266,2.71430725,3684.2,3683.9,0.1352]
[1754329283267,3.0,3684.3,3683.9,0.1352]
[1754329283624,0.7556,3684.4,3683.8,2.71454191]
[1754329283834,2.71293922,3686.1,3684.2,0.1352]
[1754329283835,3.72436026,3684.9,3684.2,0.1352]
[1754329284029,3.72436026,3684.9,3684.2,0.4164]
[1754329284030,0.72436026,3684.9,3684.2,0.4164]
[1754329284340,0.72436026,3684.9,3684.8,0.1352]
[1754329285282,3.43813811,3684.9,3684.8,0.1352]
[1754329285737,4.19373811,3684.9,3684.8,0.1352]
[1754329285937,3.43813811,3684.9,3684.8,0.1352]
[1754329286455,0.72436026,3684.9,3684.8,0.1352]
[1754329287911,0.72436026,3684.9,3684.8,2.84905149]
[1754329288182,0.72436026,3684.9,3684.8,4.18780204]
[1754329289461,0.72436026,3684.9,3684.8,8.47980204]
[1754329289843,0.72436026,3684.9,3684.8,8.34460204]
[1754329293266,0.72436026,3684.9,3684.8,7.48260204]
[1754329293459,0.72436026,3684.9,3684.8,8.34460204]
[1754329293782,0.72436026,3684.9,3684.8,8.89460204]
[1754329295666,3.0,3686.2,3684.8,6.18075055]
[1754329295964,1.2219,3686.9,3685.2,0.55]
[1754329296172,1.2219,3686.9,3686.5,2.71253753]
[1754329296373,1.2219,3686.9,3685.3,7.87038786]
[1754329296374,0.4663,3686.9,3686.6,4.282]
[1754329296574,1.2219,3686.8,3686.6,4.282]
[1754329296914,0.4663,3686.7,3686.6,4.282]
[1754329297046,1.2219,3686.7,3686.5,4.285]
[1754329297250,1.2219,3686.7,3686.4,4.285]
[1754329297452,3.0,3686.8,3686.4,4.285]
[1754329297698,4.2219,3686.7,3686.4,4.285]
[1754329297864,2.71232564,3686.9,3686.4,4.285]
[1754329298050,1.2219,3686.6,3686.4,4.285]
[1754329298251,1.2219,3686.6,3685.6,0.9956]
[1754329298252,0.7556,3686.5,3685.6,0.9956]
[1754329298465,0.55,3688.5,3686.6,2.71248145]
[1754329298466,0.7556,3687.1,3686.6,2.71248145]
[1754329298670,4.284,3687.9,3686.6,2.71248145]
[1754329298671,0.4663,3687.5,3686.6,4.284]
[1754329298850,0.7556,3687.4,3686.7,2.71239951]
[1754329299051,0.7556,3687.4,3686.2,0.4164]
[1754329299052,0.7556,3687.4,3686.2,0.55]
[1754329299373,3.17833433,3687.3,3686.5,2.71258485]
[1754329299553,3.0,3687.2,3686.5,2.71258485]
[1754329299752,3.7556,3687.2,3686.5,2.71258485]
[1754329299950,3.7556,3687.2,3687.1,0.1352]
[1754329300155,4.8985659,3687.2,3687.1,0.1352]
[1754329300693,3.0,3686.9,3686.6,4.285]
[1754329300855,2.71230573,3686.9,3686.8,0.1352]
[1754329301193,5.71230573,3686.9,3686.8,0.1352]
[1754329301393,3.0,3686.9,3686.8,0.1352]
[1754329301569,4.2219,3686.9,3686.8,0.1352]
[1754329302502,3.7556,3686.9,3686.8,0.1352]
[1754329303199,4.2219,3686.9,3686.8,0.1352]
[1754329303764,3.0,3686.9,3686.8,0.1352]
[1754329304069,4.2219,3686.9,3686.8,0.1352]
[1754329306604,6.93420573,3686.9,3686.8,0.1352]
[1754329306763,5.18653683,3686.9,3686.8,0.1352]
[1754329306971,4.2219,3686.9,3685.8,4.279]
[1754329307207,5.71252644,3686.6,3686.5,0.1352]
[1754329307703,6.89672644,3686.6,3686.5,0.1352]
[1754329309501,4.1842,3686.6,3686.5,0.1352]
[1754329309703,3.0,3686.6,3686.5,0.1352]
[1754329310008,0.7284,3687.4,3686.5,0.9972]
[1754329310209,2.71189129,3687.5,3687.3,0.1352]
[1754329310705,3.7284,3687.4,3687.3,0.1352]
[1754329311506,3.0,3687.4,3687.3,0.1352]
[1754329312272,0.7284,3688.1,3687.3,3.1319335]
[1754329312468,0.2711,3688.6,3688.0,0.1352]
[1754329312469,3.43957938,3688.5,3688.0,0.1352]
[1754329312670,3.43957938,3688.5,3687.5,2.7118644]
[1754329312671,0.7284,3688.4,3688.3,0.1352]
[1754329313509,3.43960268,3688.4,3688.3,0.1352]
[1754329313712,3.43960268,3688.4,3686.7,4.272]
[1754329313713,30.0,3688.3,3686.7,4.272]
[1754329313897,2.71192379,3687.5,3686.7,4.272]
[1754329314101,1.1842,3687.4,3685.6,0.8389]
[1754329314333,5.7121586,3687.1,3687.0,0.1352]
[1754329314504,6.4405586,3687.1,3687.0,0.1352]
[1754329314713,6.8963586,3687.1,3687.0,0.1352]
[1754329315023,8.1419094,3687.1,3687.0,0.1352]
[1754329318052,8.1419094,3687.1,3685.7,4.271]
[1754329318053,2.71290126,3686.1,3685.7,4.271]
[1754329318412,2.71290126,3686.1,3686.0,0.1352]
[1754329318744,3.44130126,3686.1,3686.0,0.1352]
[1754329318936,0.7284,3686.1,3686.0,0.1352]
[1754329320550,2.71269823,3686.4,3686.0,0.1352]
[1754329320711,3.89681766,3686.5,3686.0,0.1352]
[1754329320912,0.7284,3686.4,3686.3,0.1352]
[1754329321143,6.44107361,3686.4,3686.3,0.1352]
[1754329321348,6.89687361,3686.4,3686.3,0.1352]
[1754329321649,3.0,3686.4,3686.3,2.84794719]
[1754329321850,2.7120493,3687.3,3686.4,2.71267361]
[1754329322149,3.0,3687.1,3686.6,2.71248161]
[1754329322350,3.0,3687.1,3686.7,2.71242525]
[1754329322645,3.44019789,3687.6,3686.6,3.54401504]
[1754329322844,0.68959979,3687.5,3686.9,2.71227866]
[1754329323146,0.7284,3687.6,3686.9,2.71224517]
[1754329323450,0.7284,3687.6,3687.0,2.7121979]
[1754329323648,0.7284,3688.0,3686.9,0.4151]
[1754329323834,0.7284,3688.0,3687.3,2.71200677]
[1754329324013,0.7284,3688.0,3687.0,2.71223216]
[1754329324214,3.7284,3688.0,3687.3,2.71196004]
[1754329324714,3.7284,3688.0,3687.1,3.17575017]
[1754329324715,2.711582,3687.9,3687.1,3.17571264]
[1754329325029,2.711582,3687.9,3687.1,2.7121127]
[1754329325227,2.71208081,3687.3,3686.5,2.71259522]
[1754329325457,0.7284,3687.2,3686.5,2.71259522]
[1754329325859,3.0,3687.5,3686.8,2.71232472]
[1754329326553,3.0,3687.5,3686.6,2.71247433]
[1754329326755,3.0,3687.5,3686.7,4.21]
[1754329326756,5.71188465,3687.5,3686.7,4.21]
[1754329327052,2.71195168,3687.4,3686.7,6.92242517]
[1754329327223,0.7284,3687.4,3686.7,4.21]
[1754329327424,2.71210714,3687.2,3686.7,4.21]
[1754329327627,2.71216687,3687.1,3686.7,4.21]
[1754329327853,1.1842,3687.0,3686.5,8.483]
[1754329328154,3.89644014,3687.0,3686.5,8.483]
[1754329328353,3.16804014,3687.0,3686.5,8.483]
[1754329328557,0.7284,3686.9,3686.5,4.273]
[1754329328737,0.7284,3687.2,3686.6,2.7125213]
[1754329329052,0.7284,3687.2,3686.5,8.483]
[1754329329217,2.71220827,3687.1,3686.5,8.483]
[1754329329418,2.7121599,3687.1,3686.5,8.483]
[1754329329649,0.7284,3687.2,3686.5,11.19558812]
[1754329330017,3.44054268,3687.2,3686.5,11.19558812]
[1754329330221,3.44054268,3687.2,3686.6,2.71251675]
[1754329330420,2.71214268,3687.2,3686.6,2.71251675]
[1754329330654,2.71207785,3687.3,3686.6,2.7125029]
[1754329330836,2.71201149,3687.3,3686.7,2.71242553]
[1754329331037,3.16776841,3687.4,3686.7,2.71242553]
[1754329331241,3.16776841,3687.4,3686.5,11.19559413]
[1754329331242,4.9974,3687.7,3686.8,4.22388429]
[1754329331564,2.71188391,3687.5,3686.9,2.71229438]
[1754329331767,3.0,3687.7,3686.9,4.22388172]
[1754329331967,2.71171733,3687.7,3687.6,0.1352]
[1754329332263,5.71166629,3687.8,3687.6,0.1352]
[1754329332468,2.71171733,3687.7,3687.6,0.1352]
[1754329332761,3.0,3687.8,3687.7,0.1352]
[1754329332762,3.44004379,3687.8,3687.7,0.1352]
[1754329333349,3.89584379,3687.8,3687.7,0.1352]
[1754329334166,3.44004379,3687.8,3687.7,0.1352]
[1754329334526,3.89584379,3687.8,3687.7,0.1352]
[1754329334857,1.1842,3687.8,3687.7,0.1352]
[1754329335358,2.71145463,3688.1,3687.7,0.1352]
[1754329335520,0.67421425,3688.1,3687.7,0.1352]